Cogmind - Beta 13 @@@ ROGUE MODE // 2024.05.02 @ 11:18:20 Player: UberDoot Result: Destroyed by G-73 Enforcer with Heavy Laser Performance ------------- Evolutions (9) 4500 Regions Visited (16) 3200 Robots Destroyed (107) 535 Value Destroyed (3374) 3374 Prototype IDs (35) 700 Alien Tech Used (0) 0 Bonus (450) 450 TOTAL SCORE: 12759 Bonus ------- High Alert Combat Kills 11 Follower Combat Kills 139 Aligned with FarCom 300 Cogmind --------- Core Integrity 0/1600 Matter 166/300 Energy 68/100 System Corruption 41% Temperature Cool (9) Movement Core (50) Location -1/Access Parts ------- > --- POWER (2) -------- (None) > --- PROPULSION (8) --- (None) > --- UTILITY (13) ----- Improved Terrain Scan Processor Hacking Suite Improved Hacking Suite Improved Hacking Suite > --- WEAPON (2) ------- (None) > --- INVENTORY (5) ---- Light Quantum Reactor ECM Suite Layered Medium Armor Plating Improved System Shield Power Maul Peak State ------------ > --- POWER ------------ Micro Fission Core Light Quantum Reactor > --- PROPULSION ------- VTOL Module Improved VTOL Module Nuclear Pulse Array Field Propulsion Array Field Propulsion Array > --- UTILITY ---------- Medium Storage Unit Enhanced Optical Array Improved Terrain Scan Processor Advanced Transmission Jammer ECM Suite Layered Light Armor Plating Graphene Brace Hacking Suite Hacking Suite Improved Hacking Suite Improved Hacking Suite Improved Hacking Suite Improved System Shield > --- WEAPON ----------- Field Lobotomy Kit Katana > --- INVENTORY -------- Light Antimatter Reactor Light Quantum Reactor Improved Flight Unit Q-thruster Stasis Canceller Advanced Transmission Jammer Layered Medium Armor Plating Advanced Shield Generator Improved System Shield Mass Driver [Rating: 134] Favorites ----------- Power Light Nuclear Core Engine Heavy Ion Engine Power Core Light Nuclear Core Reactor Micro Antimatter Reactor Propulsion Improved Treads Treads Improved Treads Leg Aluminum Leg Wheel Armored Wheel Flight Unit Improved Flight Unit Utility Hacking Suite Device Improved Heat Sink Storage High-capacity Storage Unit Processor Improved Terrain Scan Processor Hackware Hacking Suite Protection Layered Light Armor Plating Weapon Particle Cannon Energy Gun Beam Rifle Energy Cannon Particle Cannon Ballistic Gun Assault Rifle Ballistic Cannon Gauss Cannon Launcher Grenade Launcher Special Weapon Field Lobotomy Kit Impact Weapon Great Maul Slashing Weapon Katana Build | -11 -10 -10 -9 -9 -9 -8 -8 -7 -6 -5 -5 -5 -4 -3 -2 -1 ------- Run | Yrd Mat Min Mat Min Exi Min Mat Fac Fac Fac Was Fac Fac Res Res Acc Slots Evolved 18 | . . . 2 . . . 2 2 2 2 . . 2 2 2 2 Power 1 | . . . . . . . . . . . . . . 1 . . Propulsion 6 | . . . 1 . . . . 1 1 1 . . 1 . 1 . Utility 11 | . . . 1 . . . 2 1 1 1 . . 1 1 1 2 Weapon . | . . . . . . . . . . . . . . . . . Parts Attached 171 | 6 11 4 12 4 . 7 30 20 11 2 . 5 10 18 3 28 Power 13 | 1 1 . 3 . . . 2 1 . . . . 1 2 . 2 Engine 7 | 1 . . 3 . . . 2 . . . . . 1 . . . Core 3 | . 1 . . . . . . 1 . . . . . 1 . . Reactor 3 | . . . . . . . . . . . . . . 1 . 2 Propulsion 34 | 2 2 . 2 . . 1 5 4 2 1 . 2 2 2 1 8 Treads 8 | . 2 . 2 . . 1 3 . . . . . . . . . Leg 2 | 2 . . . . . . . . . . . . . . . . Wheel 2 | . . . . . . . 2 . . . . . . . . . Hover . | . . . . . . . . . . . . . . . . . Flight 22 | . . . . . . . . 4 2 1 . 2 2 2 1 8 Utility 57 | 1 3 1 5 1 . . 7 7 4 1 . 3 7 7 1 9 Device 22 | . 2 1 1 . . . 3 1 2 . . . 2 4 . 6 Storage 5 | 1 1 . 1 . . . . 1 . . . 1 . . . . Processor 5 | . . . 1 . . . 1 1 2 . . . . . . . Hackware 13 | . . . . . . . . 2 . 1 . 1 4 2 1 2 Protection 12 | . . . 2 1 . . 3 2 . . . 1 1 1 . 1 Artifact . | . . . . . . . . . . . . . . . . . Weapon 67 | 2 5 3 2 3 . 6 16 8 5 . . . . 7 1 9 Energy Gun 17 | 1 . 1 2 1 . 3 7 . 2 . . . . . . . Energy Cannon 7 | . 3 1 . 1 . . 2 . . . . . . . . . Ballistic Gun 2 | 1 1 . . . . . . . . . . . . . . . Ballistic Cannon 13 | . 1 . . . . . . 2 2 . . . . 3 1 4 Launcher 7 | . . . . . . 3 1 . . . . . . . . 3 Special Weapon 3 | . . . . . . . . 1 . . . . . 1 . 1 Impact Weapon 11 | . . . . . . . 6 5 . . . . . . . . Slashing Weapon 7 | . . 1 . 1 . . . . 1 . . . . 3 . 1 Piercing Weapon . | . . . . . . . . . . . . . . . . . Special Melee Weapon . | . . . . . . . . . . . . . . . . . Unidentified Prototypes 4 | . . . 1 . . . 1 1 . . . . . . . 1 Parts Lost 34 | . 1 . 1 . . . 1 . . . . . 2 1 . 28 Power 3 | . . . 1 . . . . . . . . . . . . 2 Propulsion 14 | . . . . . . . 1 . . . . . . 1 . 12 Utility 13 | . . . . . . . . . . . . . 2 . . 11 Weapon 4 | . 1 . . . . . . . . . . . . . . 3 Highest Loss Streak 18 | . 1 . 1 . . . 1 . . . . . 2 1 . 18 To Critical Strikes . | . . . . . . . . . . . . . . . . . Average Slot Usage (%) 96 | . 98 99 99 100 100 99 99 90 99 100 100 99 92 89 94 89 Engine 5 | . 9 . 9 11 11 11 9 . . . . . 5 3 . . Core 3 | . 4 14 . . . . . 6 6 5 5 5 . 4 4 3 Treads 16 | . 23 28 32 33 33 32 18 . . . . . . . . . Wheel 1 | . . . . . . . 8 . . . . . . . . . Flight 11 | . . . . . . . . 28 32 35 35 34 31 27 30 24 Device 10 | . 13 14 9 11 11 11 17 7 6 5 5 5 5 7 8 8 Storage 8 | . 14 14 11 11 11 11 9 6 6 5 5 5 5 4 4 3 Processor 5 | . . . . . . . 9 6 12 11 11 11 10 9 8 7 Hackware 7 | . . . . . . . . 13 13 17 17 17 19 19 20 25 Protection 5 | . . . 11 11 11 11 8 7 6 5 5 5 5 4 4 3 Energy Gun 6 | . . 12 11 10 11 10 12 2 3 . . . . . . . Energy Cannon 6 | . 15 13 11 11 11 11 4 . . . . . . . . . Ballistic Gun 1 | . 10 1 . . . . . . . . . . . . . . Ballistic Cannon 1 | . . . . . . . . . 2 5 5 5 5 . 3 3 Slashing Weapon 1 | . . . . . . . . . . 5 5 5 5 3 4 3 Naked Turns . | . . . . . . . . . . . . . . . . . Heaviest Build 68 | 11 32 33 61 61 59 59 68 63 25 23 23 29 37 37 42 53 Greatest Support 69 | 20 46 46 69 66 66 66 66 28 25 29 29 31 37 38 43 54 Greatest Overweight (x) 5 | . 4 . 1 . . 1 2 5 1 . . 1 1 . . 3 Average Overweight (x) . | . . . . . . . . . . . . . . . . . Largest Inventory Capacity 20 | 8 15 15 20 20 20 20 20 20 8 8 8 10 10 10 10 10 Average Capacity 14 | 6 12 15 18 20 20 20 20 8 8 8 8 9 10 10 10 9 Most Carried 20 | 7 15 15 20 20 20 20 20 20 8 7 8 10 10 10 10 10 Average Carried 13 | 4 10 14 17 19 19 19 19 8 7 6 7 9 9 9 9 9 Final Capacity 20 | 8 15 15 20 20 20 20 20 8 8 8 8 10 10 10 10 5 Final Carried 20 | 7 15 15 20 20 20 20 20 8 8 7 8 10 9 10 10 5 Class Distribution -------------------- 53% | Mutant 20% | Hacker-Scout 6% | Scavenger-Mutant 6% | Hacker-Ninja 5% | Wizard-Ninja 4% | Wizard-Sprinter Dominant Class ---------------- Mutant | -10/Materials Mutant | -10/Mines Mutant | -9/Materials Mutant | -9/Mines Mutant | -9/Exiles Mutant | -8/Mines Mutant | -8/Materials Hacker-Scout | -7/Factory Hacker-Scout | -6/Factory Hacker-Scout | -5/Factory Hacker-Scout | -5/Waste Hacker-Scout | -5/Factory Hacker-Scout | -4/Factory Hacker-Ninja | -3/Research Hacker-Ninja | -2/Research Wizard-Ninja | -1/Access Resources | -11 -10 -10 -9 -9 -9 -8 -8 -7 -6 -5 -5 -5 -4 -3 -2 -1 ----------- Run | Yrd Mat Min Mat Min Exi Min Mat Fac Fac Fac Was Fac Fac Res Res Acc Matter Collected 2562 | 235 216 74 115 40 . 92 363 110 198 . 114 . 268 172 124 441 Remotely . | . . . . . . . . . . . . . . . . . Salvage Created 4593 | 73 448 535 496 73 . 180 1251 . 198 . . 20 416 288 124 491 Parts 261 | 6 31 30 33 2 . 11 69 . . . . 4 17 16 5 37 Haulers Intercepted 9 | . 1 . . . . . 3 . 2 . . . 1 2 . . Recyclers Shooed 5 | . 2 . . . . . . . . . . . . . 1 2 Parts Field Recycled . | . . . . . . . . . . . . . . . . . Retrieved Matter . | . . . . . . . . . . . . . . . . . Parts Self-Destructed . | . . . . . . . . . . . . . . . . . Prevented . | . . . . . . . . . . . . . . . . . Kills | -11 -10 -10 -9 -9 -9 -8 -8 -7 -6 -5 -5 -5 -4 -3 -2 -1 ------- Run | Yrd Mat Min Mat Min Exi Min Mat Fac Fac Fac Was Fac Fac Res Res Acc Combat Hostiles Destroyed 74 | . 10 12 10 6 . 9 21 . . . . . 2 . . 4 Melee 6 | . . . . . . . . . . . . . 2 . . 4 Guns 32 | . 4 9 4 2 . 2 11 . . . . . . . . . Cannons 26 | . 5 3 6 4 . 1 7 . . . . . . . . . AOE 9 | . 1 . . . . 5 3 . . . . . . . . . Classes Destroyed 15 | 2 4 1 1 1 . 1 2 . 1 . . . . . . 2 Worker 1 | . . . . . . . 1 . . . . . . . . . Builder 3 | . . . . . . . 1 . . . . . . 2 . . Tunneler 1 | 1 . . . . . . . . . . . . . . . . Hauler 9 | . 1 . . . . . 3 . 2 . . . 1 2 . . Recycler 6 | 1 2 . . . . . . . . . . . 1 . 1 1 Operator 6 | . . . . . . . . . 1 . . 1 1 2 . 1 Watcher 12 | . 1 . 2 . . . 4 . . . . . . 1 . 4 Swarmer 13 | . 5 . . 1 . 3 3 . . . . . . . . 1 Cutter 2 | . . . . . . . . . . . . . . . . 2 Grunt 34 | . 5 10 5 . . 5 9 . . . . . . . . . Brawler 1 | . . . . . . 1 . . . . . . . . . . Duelist 3 | . . . 2 . . . 1 . . . . . . . . . Sentry 15 | . . 2 3 . . . 8 . . . . . 2 . . . Programmer 1 | . . . . . . . . . . . . . . . . 1 Assembled 5 | . . . . 5 . . . . . . . . . . . . Best Kill Streak 7 | 2 3 3 3 2 . 3 7 . 1 . . 1 1 3 1 1 Combat Bots Only 5 | . 3 3 3 2 . 3 5 . . . . . 1 . . 1 Max Kills in Single Turn 2 | 1 1 1 2 1 . 2 2 . 1 . . 1 1 1 1 1 Gunslinging . | . . . . . . . . . . . . . . . . . Exploded 2 | . 1 . . . . 2 2 . . . . . . . . . Melee 1 | . . . . . . . . . . . . . 1 . . 1 Uniques/NPCs Destroyed . | . . . . . . . . . . . . . . . . . Combat | -11 -10 -10 -9 -9 -9 -8 -8 -7 -6 -5 -5 -5 -4 -3 -2 -1 -------- Run | Yrd Mat Min Mat Min Exi Min Mat Fac Fac Fac Was Fac Fac Res Res Acc Hostile Shots Fired 520 | . 30 24 17 17 . 23 72 7 10 . . 7 43 34 . 236 Missed 205 | . 7 7 8 3 . 10 26 5 5 . . 4 27 14 . 89 Damage Taken 6504 | . 341 262 136 177 . 233 681 31 38 . . 58 442 377 . 3728 Core 2009 | . 27 44 24 12 . 63 83 15 . . . . 53 87 . 1601 Absorbed by Shields 344 | . . . . . . . . . . . . . . 79 . 265 Regen/Repaired (Parts) 401 | . . . . . . . 245 . . . . . . 46 . 110 Core Remaining (%) 91 | 100 . 71 . . . 75 84 97 100 . . 100 95 93 100 . Volleys Fired 264 | 6 31 21 22 13 . 18 61 4 4 . . 22 4 10 8 40 Largest 2 | 2 2 2 2 2 . 2 2 1 1 . . 1 1 1 1 1 Hottest 128 | 60 128 124 124 124 . 124 124 48 48 . . 48 48 57 57 57 Shots Fired 421 | 12 61 42 44 26 . 23 119 4 4 . . 22 4 10 8 42 Gun 194 | 12 26 21 22 13 . 5 95 . . . . . . . . . Cannon 211 | . 35 21 22 13 . 8 21 3 4 . . 22 4 9 8 41 Launcher 13 | . . . . . . 10 3 . . . . . . . . . Special 3 | . . . . . . . . 1 . . . . . 1 . 1 Kinetic 129 | 6 28 4 . . . . . 3 4 . . 22 4 9 8 41 Thermal 276 | 6 33 38 44 26 . 13 116 . . . . . . . . . Explosive 13 | . . . . . . 10 3 . . . . . . . . . Electromagnetic . | . . . . . . . . . . . . . . . . . Robot Hit Streak 15 | 9 8 5 9 15 . 6 10 7 . . . . . 8 . 2 Robot Miss Streak 5 | 1 4 2 2 3 . 2 4 . . . . . . . . 5 Penetration Max . | . . . . . . . . . . . . . . . . . Secondary Targets 1 | . . . . . . . 1 . . . . . . . . . Max Gunslinging Chain 1 | . . . . . . . 1 . . . . . . . . . Shots Hit Robots 260 | 9 32 19 29 14 . 10 79 1 6 . . 2 9 11 4 35 Core Hits 156 | 3 17 14 16 8 . 17 52 . . . . 1 6 7 1 14 Critical Kills 1 | . . . . . . 1 . . . . . . . . . . Critical Parts Destroyed 2 | . 1 . . . . . . . 1 . . . . . . . Critical Strikes 17 | . 1 1 4 1 . 1 6 . 1 . . . . . . 2 Burn 12 | . . 1 4 1 . . 6 . . . . . . . . . Meltdown 1 | . . . . . . 1 . . . . . . . . . . Destroy 1 | . 1 . . . . . . . . . . . . . . . Smash 1 | . . . . . . . . . 1 . . . . . . . Sever 2 | . . . . . . . . . . . . . . . . 2 Melee Attacks 228 | . . 3 . 1 . . 9 16 13 1 . 20 28 36 10 91 Impact 36 | . . . . . . . 9 16 11 . . . . . . . Slashing 192 | . . 3 . 1 . . . . 2 1 . 20 28 36 10 91 Piercing . | . . . . . . . . . . . . . . . . . Sneak Attacks 18 | . . . . . . . . . 3 . . 1 4 5 1 4 Combat Hostiles 2 | . . . . . . . . . . . . . 2 . . . Follow-up Attacks . | . . . . . . . . . . . . . . . . . Damage Inflicted 8219 | 104 754 402 509 249 . 910 1868 . 489 . . 131 478 585 184 1556 Guns 2044 | 104 183 195 237 103 . 57 1165 . . . . . . . . . Cannons 1391 | . 316 151 272 146 . 80 351 . . . . . . . . 75 Explosions 1436 | . 255 56 . . . 773 352 . . . . . . . . . Melee 3244 | . . . . . . . . . 489 . . 131 478 585 184 1377 Ramming 104 | . . . . . . . . . . . . . . . . 104 Kinetic 369 | 52 216 26 . . . . . . . . . . . . . 75 Thermal 3377 | 52 538 376 509 249 . 137 1516 . . . . . . . . . Explosive 1125 | . . . . . . 773 352 . . . . . . . . . Electromagnetic . | . . . . . . . . . . . . . . . . . Impact 489 | . . . . . . . . . 489 . . . . . . . Slashing 2755 | . . . . . . . . . . . . 131 478 585 184 1377 Piercing . | . . . . . . . . . . . . . . . . . Highest Corruption 41 | . . . . . . . . . . . . . 3 . . 41 Average Corruption 19 | . . . . . . . . . . . . . 3 . . 21 Corruption Purged . | . . . . . . . . . . . . . . . . . Corruption Blocked . | . . . . . . . . . . . . . . . . . Effects 50 | . . . . . . . . . . . . . 2 . . 48 Message Errors 14 | . . . . . . . . . . . . . 1 . . 13 Matter Fused 13 | . . . . . . . . . . . . . . . . 13 Heat Flow Errors 2 | . . . . . . . . . . . . . . . . 2 Energy Discharges 3 | . . . . . . . . . . . . . . . . 3 Parts Rejected 1 | . . . . . . . . . . . . . . . . 1 Parts Fused 1 | . . . . . . . . . . . . . 1 . . . Data Loss (minor) 5 | . . . . . . . . . . . . . . . . 5 Misfires 2 | . . . . . . . . . . . . . . . . 2 Alerts 2 | . . . . . . . . . . . . . . . . 2 Misdirections 7 | . . . . . . . . . . . . . . . . 7 Overload Shots . | . . . . . . . . . . . . . . . . . Overflow Damage 527 | . 34 16 . . . 9 17 . 231 . . 11 23 46 11 129 Projectiles 20 | . . . . . . . 17 . . . . . . . . 3 Explosions 59 | . 34 16 . . . 9 . . . . . . . . . . Melee 448 | . . . . . . . . . 231 . . 11 23 46 11 126 Knockbacks 1 | . 1 . . . . . . . . . . . . . . . Impact . | . . . . . . . . . . . . . . . . . Kinetic 1 | . 1 . . . . . . . . . . . . . . . Secondary . | . . . . . . . . . . . . . . . . . Self-Inflicted Damage 251 | . 111 38 . . . . . . . . . . . . . 102 Shots 2 | . 1 1 . . . . . . . . . . . . . . Rammed 4 | . . . . . . . . . . . . . . . . 4 Targets Rammed 4 | . . . . . . . . . . . . . . . . 4 Kicked . | . . . . . . . . . . . . . . . . . Crushed . | . . . . . . . . . . . . . . . . . Highest Temperature 370 | . 132 99 108 150 . 57 351 16 9 18 36 177 35 206 243 370 Average Temperature 53 | . 41 35 37 49 . 21 68 8 3 9 15 32 10 64 81 62 Received Heat Transfer 906 | . 84 105 45 20 . 126 351 9 . . . . 70 . . 96 Effects 5 | . . . . . . . . . . . . . . 2 . 3 Energy Bleed 2 | . . . . . . . . . . . . . . . . 2 Interference 2 | . . . . . . . . . . . . . . 2 . . Damage (minor) 1 | . . . . . . . . . . . . . . . . 1 Siege Activations . | . . . . . . . . . . . . . . . . . Robots Corrupted . | . . . . . . . . . . . . . . . . . Combat Hostiles . | . . . . . . . . . . . . . . . . . Parts Fried 1 | . . . . . . . . . 1 . . . . . . . Impact Corruptions 8 | . . . . . . . . . 8 . . . . . . . Robots Melted 1 | . . . . . . 1 . . . . . . . . . . Combat Hostiles 1 | . . . . . . 1 . . . . . . . . . . Parts Melted 16 | . . 1 6 1 . 2 6 . . . . . . . . . Heat Transferred 7381 | 125 805 790 1369 592 . 296 3404 . . . . . . . . . Parts Sabotaged . | . . . . . . . . . . . . . . . . . Parts Stolen . | . . . . . . . . . . . . . . . . . Parts Stripped . | . . . . . . . . . . . . . . . . . Power Chain Reactions . | . . . . . . . . . . . . . . . . . Alert | -11 -10 -10 -9 -9 -9 -8 -8 -7 -6 -5 -5 -5 -4 -3 -2 -1 ------- Run | Yrd Mat Min Mat Min Exi Min Mat Fac Fac Fac Was Fac Fac Res Res Acc Peak Influence 446 | 10 243 181 299 83 . 266 446 256 237 29 10 130 136 134 128 161 Initial 202 | . 6 31 53 67 . . 103 202 63 27 10 7 63 46 . 76 Average 84 | 3 83 56 170 33 . 47 161 169 112 27 10 38 59 30 60 70 Maximum Alert Level 2 | . 1 . 1 . . 1 2 1 1 . . . . . . . Low Security (%) 89 | 100 91 100 68 100 . 93 74 42 89 100 100 100 100 100 100 100 Level 1 7 | . 8 . 31 . . 6 10 57 10 . . . . . . . Level 2 2 | . . . . . . . 14 . . . . . . . . . Level 3 . | . . . . . . . . . . . . . . . . . Level 4 . | . . . . . . . . . . . . . . . . . Level 5 . | . . . . . . . . . . . . . . . . . High Security . | . . . . . . . . . . . . . . . . . Max Security . | . . . . . . . . . . . . . . . . . Squads Dispatched 26 | . 3 . . . . . 1 3 1 . . 2 4 2 1 9 Investigation 11 | . 1 . . . . . 1 2 . . . 1 2 1 . 3 Extermination 4 | . . . . . . . . 1 . . . . . . 1 2 Reinforcement 11 | . 2 . . . . . . . 1 . . 1 2 1 . 4 Assault . | . . . . . . . . . . . . . . . . . Garrison . | . . . . . . . . . . . . . . . . . Intercept . | . . . . . . . . . . . . . . . . . Searches Triggered . | . . . . . . . . . . . . . . . . . Construction Impeded 1 | . . . . . . . . . . . . . . . . 1 Haulers Reinforced . | . . . . . . . . . . . . . . . . . Active Scanning Responses . | . . . . . . . . . . . . . . . . . Cargo Convoy Interrupts . | . . . . . . . . . . . . . . . . . Stealth | -11 -10 -10 -9 -9 -9 -8 -8 -7 -6 -5 -5 -5 -4 -3 -2 -1 --------- Run | Yrd Mat Min Mat Min Exi Min Mat Fac Fac Fac Was Fac Fac Res Res Acc Distress Signals 12 | . . . 1 1 . . 5 . . . . 2 1 1 . 1 Communications Jammed 6 | . . . . . . . . . . . . . . . . 6 Distress Signals 6 | . . . . . . . . . . . . . . . . 6 Times Spotted 220 | . 22 18 12 10 . 8 30 10 9 . 1 7 19 20 3 51 Peak Tracking Total 14 | . 4 3 3 3 . 3 5 5 4 . 1 4 14 7 2 13 Tactical Retreats 30 | . 3 2 . 2 . . . 2 2 . . 1 1 3 . 14 Traps | -11 -10 -10 -9 -9 -9 -8 -8 -7 -6 -5 -5 -5 -4 -3 -2 -1 ------- Run | Yrd Mat Min Mat Min Exi Min Mat Fac Fac Fac Was Fac Fac Res Res Acc Traps Triggered 5 | . . . . . . . 1 1 . 1 . . . 1 . 1 Indirectly . | . . . . . . . . . . . . . . . . . Trap Hack Attempts . | . . . . . . . . . . . . . . . . . Triggered . | . . . . . . . . . . . . . . . . . Disarmed . | . . . . . . . . . . . . . . . . . Reprogrammed . | . . . . . . . . . . . . . . . . . Reused . | . . . . . . . . . . . . . . . . . Traps Extracted . | . . . . . . . . . . . . . . . . . Installed . | . . . . . . . . . . . . . . . . . Triggered . | . . . . . . . . . . . . . . . . . Machines | -11 -10 -10 -9 -9 -9 -8 -8 -7 -6 -5 -5 -5 -4 -3 -2 -1 ---------- Run | Yrd Mat Min Mat Min Exi Min Mat Fac Fac Fac Was Fac Fac Res Res Acc Machines Disabled 12 | . 2 5 . . . . 1 . . . . 1 . 1 . 2 Max in Single Turn 3 | . 1 3 . . . . 1 . . . . 1 . 1 . 1 Garrison Access 10 | . . . . . . . . . 3 . . 1 1 2 . 3 Machines Repaired . | . . . . . . . . . . . . . . . . . Machines Dismantled . | . . . . . . . . . . . . . . . . . Machines Sabotaged . | . . . . . . . . . . . . . . . . . Overloaded Fab Kills . | . . . . . . . . . . . . . . . . . Hacking | -11 -10 -10 -9 -9 -9 -8 -8 -7 -6 -5 -5 -5 -4 -3 -2 -1 --------- Run | Yrd Mat Min Mat Min Exi Min Mat Fac Fac Fac Was Fac Fac Res Res Acc Machines Accessed 84 | . 5 . 4 . 2 . 6 7 8 . . 11 10 14 3 14 Terminals 51 | . 5 . 2 . . . 4 6 3 . . 7 5 7 3 9 Fabricators 7 | . . . . . . . . 1 . . . 2 2 2 . . Repair Stations 5 | . . . . . . . 1 . . . . . . 2 . 2 Recycling Units . | . . . . . . . . . . . . . . . . . Scanalyzers 7 | . . . 2 . . . 1 . 2 . . . 1 1 . . Garrison Access 12 | . . . . . . . . . 3 . . 2 2 2 . 3 Total Hacks 283 | . 22 . 17 . 2 . 19 27 25 . . 36 35 46 12 42 Successful 163 | . 9 . 11 . 2 . 12 10 16 . . 17 28 27 7 24 Failed 119 | . 12 . 6 . . . 7 17 9 . . 19 7 19 5 18 Catastrophic 26 | . . . . . . . 1 6 2 . . 8 . 2 . 7 Database Lockouts 1 | . 1 . . . . . . . . . . . . . . . Manual 71 | . 8 . . . 1 . 3 10 5 . . 16 6 3 5 14 Terminals 195 | . 22 . 6 . . . 11 23 11 . . 28 22 27 12 33 Fabricators 19 | . . . . . . . . 4 . . . 5 5 5 . . Repair Stations 15 | . . . . . . . 4 . . . . . . 6 . 5 Recycling Units . | . . . . . . . . . . . . . . . . . Scanalyzers 32 | . . . 11 . . . 4 . 10 . . . 5 2 . . Garrison Access 20 | . . . . . . . . . 4 . . 3 3 6 . 4 Terminal Hacks 99 | . 9 . 1 . 2 . 5 8 4 . . 13 16 16 7 18 Record 17 | . . . . . 1 . . 1 . . . 1 5 3 . 6 Part Schematic 2 | . . . . . . . . . . . . 2 . . . . Robot Analysis 8 | . 2 . . . . . . . . . . 1 . 1 2 2 Prototype ID Bank 4 | . . . . . . . . 1 . . . . 1 1 1 . Level Access Points 6 | . . . . . . . . 1 . . . 1 1 1 1 1 Branch Access Points 6 | . 1 . . . . . . 1 1 . . 1 1 . . 1 Emergency Access Points 3 | . . . . . . . . . . . . . 1 1 . 1 Terminal Index 7 | . . . . . . . . 1 1 . . 1 1 1 1 1 Fabricator Index 4 | . . . . . . . . . . . . 1 1 1 1 . Repair Station Index 2 | . . . . . . . . . . . . 1 . 1 . . Scanalyzer Index 2 | . 1 . . . . . . . 1 . . . . . . . Alert Level 9 | . 1 . . . . . 1 1 . . . 1 2 2 . 1 Unreport Threat 6 | . . . . . . . . . . . . . 1 1 . 4 Locate Traps 6 | . 2 . . . . . 1 . 1 . . 2 . . . . Security Status 1 | . . . . . . . . . . . . 1 . . . . Recall Investigation 1 | . . . . . . . . . . . . . 1 . . . Recall Extermination 2 | . . . . . . . . 1 . . . . . . . 1 Recall Reinforcements 2 | . . . . . . . . . . . . . 1 1 . . Hauler Manifests 2 | . . . . . . . 1 1 . . . . . . . . Zone Layout 8 | . 2 . 1 . . . 2 . . . . . . 2 1 . Derelict Proto ID Bank 1 | . . . . . 1 . . . . . . . . . . . Fabricator Hacks 14 | . . . . . . . . 2 . . . 3 5 4 . . Network Status 2 | . . . . . . . . . . . . . 1 1 . . Load Schematic 7 | . . . . . . . . 1 . . . 2 2 2 . . Build 5 | . . . . . . . . 1 . . . 1 2 1 . . Repair Station Hacks 10 | . . . . . . . 4 . . . . . . 4 . 2 Scan Component 5 | . . . . . . . 2 . . . . . . 2 . 1 Repair 5 | . . . . . . . 2 . . . . . . 2 . 1 Recycling Unit Hacks . | . . . . . . . . . . . . . . . . . Scanalyzer 26 | . . . 10 . . . 3 . 8 . . . 5 . . . Insert Component 13 | . . . 5 . . . 2 . 4 . . . 2 . . . Analyze 13 | . . . 5 . . . 1 . 4 . . . 3 . . . Garrison Access Hacks 10 | . . . . . . . . . 3 . . 1 1 2 . 3 Seal Access 10 | . . . . . . . . . 3 . . 1 1 2 . 3 Unauthorized Hacks 4 | . . . . . . . . . 1 . . . 1 1 . 1 Terminals 4 | . . . . . . . . . 1 . . . 1 1 . 1 Assimilate 4 | . . . . . . . . . 1 . . . 1 1 . 1 Fabricators . | . . . . . . . . . . . . . . . . . Repair Stations . | . . . . . . . . . . . . . . . . . Recycling Units . | . . . . . . . . . . . . . . . . . Scanalyzers . | . . . . . . . . . . . . . . . . . Garrison Access . | . . . . . . . . . . . . . . . . . Data Cores Recovered 6 | . . . . . . . . . 1 . . 1 1 2 . 1 Used 1 | . . . . . . . . . . . . . 1 . . . Hacking Detections 69 | . 5 . 4 . . . 4 6 5 . . 9 9 14 2 11 Full Trace Events 10 | . 1 . . . . . . 2 . . . 1 2 1 . 3 Feedback Events 1 | . . . . . . . . . . . . . . . . 1 Corruption 1 | . . . . . . . . . . . . . . . . 1 Feedback Blocked . | . . . . . . . . . . . . . . . . . Robot Schematics Acquired . | . . . . . . . . . . . . . . . . . Robots Built . | . . . . . . . . . . . . . . . . . Authchips . | . . . . . . . . . . . . . . . . . Time . | . . . . . . . . . . . . . . . . . Total Robot Build Rating . | . . . . . . . . . . . . . . . . . Part Schematics Acquired 13 | . . . 5 . . . 1 . 3 . . 2 2 . . . Parts Built 6 | . . . . . . . . 2 . . . 1 2 1 . . Authchips . | . . . . . . . . . . . . . . . . . Time 325 | . . . . . . . . 31 . . . 47 189 58 . . Total Part Build Rating 18 | . . . . . . . . 4 . . . 5 6 3 . . Parts Repaired 5 | . . . . . . . 2 . . . . . . 2 . 1 Time 120 | . . . . . . . 70 . . . . . . 36 . 14 Parts Recycled . | . . . . . . . . . . . . . . . . . Recycled Matter . | . . . . . . . . . . . . . . . . . Retrieved Matter . | . . . . . . . . . . . . . . . . . Retrieved Components . | . . . . . . . . . . . . . . . . . Parts Scanalyzed 11 | . . . 5 . . . 1 . 3 . . . 2 . . . Part Schematics Acquired 11 | . . . 5 . . . 1 . 3 . . . 2 . . . Parts Damaged 1 | . . . 1 . . . . . . . . . . . . . Bothacking | -11 -10 -10 -9 -9 -9 -8 -8 -7 -6 -5 -5 -5 -4 -3 -2 -1 ------------ Run | Yrd Mat Min Mat Min Exi Min Mat Fac Fac Fac Was Fac Fac Res Res Acc Used RIF Installer . | . . . . . . . . . . . . . . . . . Robots Hacked . | . . . . . . . . . . . . . . . . . Non-combat . | . . . . . . . . . . . . . . . . . Combat . | . . . . . . . . . . . . . . . . . Robot Hacks Applied . | . . . . . . . . . . . . . . . . . Relay Couplers Released . | . . . . . . . . . . . . . . . . . Fabnet Peak Effective % . | . . . . . . . . . . . . . . . . . Robots Rewired . | . . . . . . . . . . . . . . . . . Allies Hacked . | . . . . . . . . . . . . . . . . . Hacks Repelled . | . . . . . . . . . . . . . . . . . Allies | -11 -10 -10 -9 -9 -9 -8 -8 -7 -6 -5 -5 -5 -4 -3 -2 -1 -------- Run | Yrd Mat Min Mat Min Exi Min Mat Fac Fac Fac Was Fac Fac Res Res Acc Total Allies 11 | . . 5 . 1 . . . 1 . . . . 1 2 . 1 Largest Group 3 | . . 3 . 1 . . . 1 . . . . 1 1 . 1 Highest-Rated Group 219 | . . 40 . 31 . . . 37 . . . . 10 45 . 219 Highest-Rated Ally 219 | . . 31 . 31 . . . 37 . . . . 10 45 . 219 Total Orders . | . . . . . . . . . . . . . . . . . Ally Attacks 42 | . . 17 . 10 . . . 5 . . . . . 2 . 8 Total Damage 1619 | . . 245 . 146 . . . 96 . . . . . 41 . 1091 Kills 9 | . . 6 . 2 . . . 1 . . . . . . . . Allies Corrupted . | . . . . . . . . . . . . . . . . . Allies Melted . | . . . . . . . . . . . . . . . . . Field Lobotomies 3 | . . . . . . . . 1 . . . . . 1 . 1 Intel | -11 -10 -10 -9 -9 -9 -8 -8 -7 -6 -5 -5 -5 -4 -3 -2 -1 ------- Run | Yrd Mat Min Mat Min Exi Min Mat Fac Fac Fac Was Fac Fac Res Res Acc Robot Analysis Total 8 | . 2 . . . . . . . . . . 1 . 1 2 2 Derelict Logs Recovered 2 | . . 1 . 1 . . . . . . . . . . . . Drone Launches . | . . . . . . . . . . . . . . . . . Drone Recoveries . | . . . . . . . . . . . . . . . . . Exploration | -11 -10 -10 -9 -9 -9 -8 -8 -7 -6 -5 -5 -5 -4 -3 -2 -1 ------------- Run | Yrd Mat Min Mat Min Exi Min Mat Fac Fac Fac Was Fac Fac Res Res Acc Turns Passed 13882 | 110 1136 1854 766 1318 428 728 1987 692 503 66 72 997 523 823 259 1620 Spaces Moved 12458 | 61 628 731 346 527 267 404 932 1046 1175 112 192 983 997 1164 583 2310 Core 59 | 9 1 . . . . . . . . . . . . . . 49 Treads 3304 | . 499 731 346 527 267 404 530 . . . . . . . . . Legs 180 | 52 128 . . . . . . . . . . . . . . . Wheels 425 | . . . . . . . 402 23 . . . . . . . . Hover . | . . . . . . . . . . . . . . . . . Flight 8490 | . . . . . . . . 1023 1175 112 192 983 997 1164 583 2261 Fastest Speed 19 | 50 120 160 160 160 160 160 125 31 27 23 23 23 22 22 19 19 Average Speed 65 | 109 151 160 160 160 160 160 145 34 27 23 23 23 22 22 19 22 Slowest Speed 440 | 120 250 160 240 160 160 240 240 440 101 23 23 103 104 23 19 245 Overloaded Moves . | . . . . . . . . . . . . . . . . . Propulsion Burnouts . | . . . . . . . . . . . . . . . . . Robots Hopped 63 | . . . . . . . . 11 . . . 3 9 2 . 38 Cave-ins Triggered 2 | . . . . . . . . . . . . . 1 . . 1 Exploration Rate (%) 47 | 4 87 100 29 91 64 88 56 22 32 6 91 27 23 32 13 40 Regions Visited 16 Branch Regions 4 Pre-discovered Areas 3 | . . 1 . 1 1 . . . . . . . . . . . Known Exits Taken 8 | . 1 . 1 . . 1 . 1 . . . 1 1 1 1 . Unknown Exits Taken 6 | 1 . 1 . 1 1 . 1 . 1 . . . . . . . Scrap Searched 7 | . . 3 . 1 . 3 . . . . . . . . . . Spaces Dug 146 | . . 1 . 1 . . 9 18 10 1 . 26 19 19 5 37 Terrain Destroyed 309 | . 25 7 . 1 . 70 35 18 10 1 . 33 21 25 9 54 Melee 111 | . . 1 . 1 . . 9 16 7 1 . 13 17 15 4 27 Projectile 71 | . . . . . . . 1 2 3 . . 20 4 10 5 26 AOE 126 | . 25 6 . . . 70 25 . . . . . . . . . Terrain Rammed 1 | . . . . . . . . . . . . . . . . 1 Walls Destroyed 1 | . . . . . . . . . . . . . . . . 1 Machines Disabled . | . . . . . . . . . . . . . . . . . Actions | -11 -10 -10 -9 -9 -9 -8 -8 -7 -6 -5 -5 -5 -4 -3 -2 -1 --------- Run | Yrd Mat Min Mat Min Exi Min Mat Fac Fac Fac Was Fac Fac Res Res Acc Total 17355 | 89 752 1369 512 973 268 458 1425 1330 1328 150 219 1697 1239 1655 709 3182 Wait 4061 | 10 57 603 121 427 . 25 349 213 113 34 25 653 200 412 95 724 Move 12322 | 60 627 730 345 526 266 403 931 1023 1174 112 191 976 978 1159 582 2239 Hop 57 | . . . . . . . . 11 . . . 3 9 2 . 32 Pick Up 101 | 7 12 3 6 1 1 2 20 8 5 1 2 7 4 8 7 7 Fast Attach 66 | 6 7 1 4 . . 1 7 11 5 . . 4 4 4 . 12 Attach 43 | . 2 . 3 1 . . 6 2 3 2 . . 3 6 3 12 Detach 28 | . 3 . 4 . . . 2 3 2 . . 1 2 6 . 5 Swap 62 | . 2 3 5 3 . 6 17 7 3 . . 1 3 8 . 4 Drop 98 | . 11 5 2 1 1 3 23 14 6 . 1 10 4 4 4 9 Fire 264 | 6 31 21 22 13 . 18 61 4 4 . . 22 4 10 8 40 Melee 228 | . . 3 . 1 . . 9 16 13 1 . 20 28 36 10 91 Ram 6 | . . . . . . . . . . . . . . . . 6 Kick . | . . . . . . . . . . . . . . . . . Crush . | . . . . . . . . . . . . . . . . . Escape Stasis 19 | . . . . . . . . 18 . . . . . . . 1 Rewire . | . . . . . . . . . . . . . . . . . Trap . | . . . . . . . . . . . . . . . . . Miscellaneous . | . . . . . . . . . . . . . . . . . Route ------- -11/Scrapyard -10/Materials (discovered 4 exits: *Mat x3 / *Min) -10/Mines (discovered 3 exits: *Mat x2 / [*Sub]) -9/Materials (discovered 2 exits: *Mat / *Min) -9/Mines (discovered 3 exits: *Mat x2 / *Exi) -9/Exiles -8/Mines -8/Materials -7/Factory (discovered 6 exits: *Fac x4 / *Low x2) -6/Factory (discovered 5 exits: [*Fac] / Low x2 / Ext x2) -5/Factory -5/Waste -5/Factory (discovered 6 exits: *Fac x4 / *Upp x2) -4/Factory (discovered 7 exits: *Res x4 / Upp x2 / Arm) -3/Research (discovered 4 exits: *Res x3 / [Tes]) -2/Research (discovered 3 exits: *Acc x3) -1/Access (discovered 2 exits: Sur / Com) History --------- Turn | Location | Event 11 | -11/Scrapyard | Discovered new exit (range 15) 111 | -11/Scrapyard | Entered Materials 334 | -10/Materials | Discovered new exit (range 8) 362 | -10/Materials | Build established: Mutant 581 | -10/Materials | Discovered new exit (range 16) 647 | -10/Materials | Identified exit to Mines 763 | -10/Materials | Central database locked down 1203 | -10/Materials | Discovered new exit (range 5) 1247 | -10/Materials | Entered Mines 1279 | -10/Mines | Learned location of Zion (-7) 1386 | -10/Mines | Discovered new exit (range 8) 2070 | -10/Mines | Assisted by bots powering up and referring to "LRC-V3" 2242 | -10/Mines | Excavation squad dispatched 2242 | -10/Mines | A large section of the Mines collapsed 2492 | -10/Mines | Excavation squad dispatched 2742 | -10/Mines | Excavation squad dispatched 2882 | -10/Mines | Discovered new exit (range 8) 2954 | -10/Mines | Discovered new exit (range 14) 3101 | -10/Mines | Entered Materials 3101 | -9/Materials | Evolved 2 slots: Propulsion x1, Utility x1 3571 | -9/Materials | Discovered new exit (range 16) 3685 | -9/Materials | Discovered new exit (range 16) 3752 | -9/Materials | Identified exit to Materials 3771 | -9/Materials | Identified exit to Mines 3867 | -9/Materials | Entered Mines 3901 | -9/Mines | Met a Derelict bent on vengeance 3925 | -9/Mines | Learned location of Recycling (-9) 4080 | -9/Mines | Assembled infested the area 4552 | -9/Mines | Received a Mining Laser from a helpful Derelict 4766 | -9/Mines | Discovered exit to Materials (range 14) 5079 | -9/Mines | Discovered exit to Materials (range 3) 5095 | -9/Mines | Deemed a non-threat by the Exiles lab entrance 5096 | -9/Mines | Discovered new exit (range 5) 5185 | -9/Mines | Entered Exiles 5225 | -9/Exiles | Met 8R-AWN 5253 | -9/Exiles | Met EX-HEX 5301 | -9/Exiles | Met EX-BIN 5318 | -9/Exiles | Met EX-DEC 5395 | -9/Exiles | Aligned with FarCom system 5397 | -9/Exiles | Given EX-Vault access code 5435 | -9/Exiles | Opened EX-Vault 5452 | -9/Exiles | Found Field Lobotomy Kit 5488 | -9/Exiles | Warned to stay clear of 0b10 Research branches 5593 | -9/Exiles | Discovered new exit (range 14) 5613 | -9/Exiles | Left Exiles lab with Field Lobotomy Kit 5613 | -9/Exiles | Entered Mines 6274 | -8/Mines | Discovered exit to Materials (range 8) 6341 | -8/Mines | Entered Materials 6341 | -8/Materials | Evolved 2 slots: Utility x2 6589 | -8/Materials | Build established: Scavenger-Mutant 7567 | -8/Materials | Build established: Mutant 8094 | -8/Materials | Discovered new exit (range 10) 8177 | -8/Materials | Repaired Hrd. Medium Armor Plating 8214 | -8/Materials | Repaired Imp. Treads 8328 | -8/Materials | Entered Factory 8328 | -7/Factory | Evolved 2 slots: Propulsion x1, Utility x1 8623 | -7/Factory | Assimilated P-60 Hacker with FLK Orb 8662 | -7/Factory | Fabricated VTOL Module? 8724 | -7/Factory | Build established: Hacker-Scout 8729 | -7/Factory | Identified exit to Factory 8746 | -7/Factory | Discovered new exit (range 6) 8767 | -7/Factory | Identified exit to Lower Caves 9020 | -7/Factory | Entered another Factory area 9020 | -6/Factory | Evolved 2 slots: Propulsion x1, Utility x1 9242 | -6/Factory | Identified exit to Lower Caves 9242 | -6/Factory | Identified exit to Extension 9415 | -6/Factory | Discovered new exit (range 5) 9523 | -6/Factory | Entered another Factory area 9523 | -5/Factory | Evolved 2 slots: Propulsion x1, Utility x1 9589 | -5/Factory | Sucked down chute 9589 | -5/Factory | Entered Waste 9589 | -5/Waste | The area was eerily silent 9649 | -5/Waste | A Compactor rumbled back to life 9649 | -5/Waste | Spotted C-40 Crusher 9658 | -5/Waste | Discovered new exit (range 11) 9661 | -5/Waste | Entered Factory 9788 | -5/Factory | Discovered new exit (range 19) 10067 | -5/Factory | Identified exit to Factory 10067 | -5/Factory | Identified exit to Upper Caves 10121 | -5/Factory | Fabricated Stasis Canceller? 10658 | -5/Factory | Entered another Factory area 10658 | -4/Factory | Evolved 2 slots: Propulsion x1, Utility x1 10910 | -4/Factory | Fabricated Imp. VTOL Module (x1) 11006 | -4/Factory | Identified exit to Research 11006 | -4/Factory | Identified exit to Upper Caves 11006 | -4/Factory | Identified exit to Armory 11058 | -4/Factory | Crushed by falling debris 11157 | -4/Factory | Fabricated Hacking Suite (x1) 11181 | -4/Factory | Entered Research 11181 | -3/Research | Evolved 2 slots: Power x1, Utility x1 11272 | -3/Research | Repaired Lrn. Terrain Scanner 11407 | -3/Research | Assimilated S-43 Plague with FLK Orb 11435 | -3/Research | Identified exit to Research 11517 | -3/Research | Repaired VTOL Module 11562 | -3/Research | Discovered new exit (range 19) 11628 | -3/Research | Fabricated Imp. VTOL Module? 11706 | -3/Research | Build established: Hacker-Ninja 12004 | -3/Research | Entered another Research area 12004 | -2/Research | Evolved 2 slots: Propulsion x1, Utility x1 12022 | -2/Research | Found Prototype Launcher 12038 | -2/Research | Identified exit to Access 12263 | -2/Research | Entered Access 12263 | -1/Access | Evolved 2 slots: Utility x2 12318 | -1/Access | Repaired Lyr. Light Armor Plating 12435 | -1/Access | Identified exit to Command 12561 | -1/Access | Build established: Wizard-Ninja 12605 | -1/Access | Identified exit to Surface 13010 | -1/Access | Crushed by falling debris 13011 | -1/Access | System corruption reached 10% 13032 | -1/Access | Identified Adv. Micro-nuke Launcher 13201 | -1/Access | Spotted B-99 Colossus 13301 | -1/Access | Build established: Wizard-Sprinter 13608 | -1/Access | Spotted B-99 Colossus 13610 | -1/Access | Spotted B-99 Colossus 13610 | -1/Access | Assimilated B-99 Colossus with FLK Orb 13645 | -1/Access | Lost 4 parts (2n1u1w) 13776 | -1/Access | System corruption reached 30% 13859 | -1/Access | Core integrity fell below 50% 13878 | -1/Access | Core integrity fell below 20% 13883 | -1/Access | Destroyed by G-73 Enforcer with Heavy Laser Last Messages --------------- 13856_ Penetrated by Slug. 13856_ Adv. Concussive RPG destroyed. 13856_ Slug penetrates Wall. 13856_ K-01 Serf collects debris. 13858_ W-44 Eye distress signal jammed. 13863_ Slammed into P-80 Master. 13864_ W-44 Eye distress signal jammed. 13870_ System corrupted: Adv. Transmission Jammer rejected. 13874_ Imp. System Shield destroyed. 13877_ Slug penetrates Wall. 13880_ Slammed into G-73 Enforcer. 13880_ Destabilizing: Core damaged (-16). 13880_ P-80 Master resets G-73 Enforcer, system corruption cleaned. 13880_ Slug penetrates H-88 Terminator. 13880_ Penetrated by Slug. 13881_ Slammed into G-73 Enforcer. 13882_ Slug penetrates G-73 Enforcer. 13882_ Penetrated by Slug. Map ----- +----------------------------------------------------+ | # #??????# [ %#????????????# "#???###?? | | # ##?????# %%#????????#???# ###??#???? | | # "##?#??# % #?############ "#???????? | | ######" #????#""""""""""#?# # ##???????? | | #????# ##????????????????# # #???????#? | | #???#######???????????????# # #???#?##?? | | ##?????# ##????"?????????# # ##?#??#??? | | "########""#?#????????????# # #?##??#?# | | # ###???"????????# % # #?????##?? | | # " #??????????### = # ########## | | # !** "###??????????# " = + # """T"" | | # !** ""#???????